fUSD/lending_fUSD_20241022
["ID","MTS","AMOUNT","RATE_DAILY","PERIOD"]
[340662921,1729617034130,-636.21,0.000397,31]
[340662922,1729617034139,-636.21,0.000397,31]
[340662923,1729617034149,-636.21,0.000397,31]
[340662924,1729617034158,-636.21,0.000397,31]
[340662925,1729617034167,-636.21,0.000397,31]
[340662926,1729617034177,-636.21,0.000397,31]
[340662927,1729617034187,-636.21,0.000397,31]
[340662928,1729617034197,-42466.13,0.0004,30]
[340662929,1729617034207,-16481.41079644,0.0004,60]
[340662930,1729617034216,-200.0,0.0004,120]
[340662931,1729617034226,-150.0,0.0004,120]
[340662932,1729617034237,-1044.0,0.0004,30]
[340662933,1729617034248,-1003.0,0.0004,30]
[340662934,1729617034257,-20583.0,0.0004,2]
[340662935,1729617034267,-11522.0,0.000401,3]
[340662936,1729617034276,-11522.0,0.000402,5]
[340662937,1729617034285,-305.71,0.00040275,2]
[340662938,1729617034294,-8631.57636221,0.00040323,8]
[340662939,1729617034303,-9125.05753668,0.00040323,8]
[340662940,1729617034313,-32996.00028038,0.0004037,30]
[340662941,1729617034323,-5050.0,0.0004037,34]
[340662942,1729617034333,-1214.94049741,0.0004037,120]
[340662943,1729617034344,-601.10173477,0.0004037,30]
[340662944,1729617034353,-7985.39646676,0.0004037,120]
[340662945,1729617034362,-9070.53117748,0.0004037,2]
[340662946,1729617034371,-151.0,0.00040378,14]
[340662947,1729617034381,-151.0,0.00040381,14]
[340662948,1729617034390,-151.0,0.00040381,14]
[340662949,1729617034400,-151.0,0.00040381,7]
[340662950,1729617034409,-151.0,0.00040381,14]
[340662951,1729617034419,-151.0,0.00040381,14]
[340662952,1729617034429,-151.0,0.00040381,14]
[340662953,1729617034438,-151.0,0.00040381,14]
[340662954,1729617034447,-150.06603694,0.00040386,4]
[340662955,1729617034456,-151.0,0.00040386,14]
[340662956,1729617034465,-151.0,0.00040386,14]
[340662957,1729617034474,-151.0,0.00040386,14]
[340662958,1729617034484,-152.517041,0.00040386,14]
[340662959,1729617034493,-156.597151,0.00040386,7]
[340662960,1729617034502,-249.201052,0.00040386,14]
[340662961,1729617034511,-991.82354282,0.00040426,30]
[340662962,1729617034521,-8631.57636221,0.00040572,8]
[340662963,1729617034530,-9125.05753668,0.00040572,8]
[340662964,1729617034539,-158.19,0.00040639,120]
[340662965,1729617034548,-8631.57636221,0.0004099,8]
[340662966,1729617034559,-200.0,0.00041,120]
[340662967,1729617034571,-8631.57636221,0.00041076,8]
[340662968,1729617034581,-9125.05753668,0.00041076,8]
[340662969,1729617034591,-9125.05753668,0.00041086,8]
[340662970,1729617034601,-11470.07,0.00041096,2]
[340662971,1729617034611,-150.99,0.00041242,120]
[340662972,1729617034620,-1605.57,0.000417,7]
[340662973,1729617034630,-679.57,0.000417,7]
[340662974,1729617034793,-1491.77,0.000417,7]
[340662975,1729617034810,-1605.57,0.000417,7]
[340662976,1729617034820,-1605.57,0.000417,7]
[340662977,1729617034829,-1605.57,0.000417,7]
[340662978,1729617034839,-200.0,0.00042,120]
[340662979,1729617034851,-1465.73752956,0.00042,2]
[340662980,1729617034860,-570.0,0.00042,3]
[340662981,1729617034869,-1312.03605001,0.0004201,2]
[340662982,1729617034878,-160.46,0.00042374,2]
[340662983,1729617034889,-6935.41,0.000424,7]
[340662984,1729617034898,-6735.41,0.000424,7]
[340662985,1729617034907,-4117.72,0.000424,7]
[340662986,1729617034916,-6735.41,0.000424,7]
[340662987,1729617034925,-305.71,0.00042538,2]
[340662988,1729617034934,-8631.57636221,0.0004269,9]
[340662989,1729617034944,-9125.05753668,0.0004269,8]
[340662990,1729617034953,-4234.0,0.000427,117]
[340662991,1729617034963,-1700.95174153,0.000428,60]
[340662992,1729617034973,-451.42026793,0.000428,120]
[340662993,1729617034982,-342.39128415,0.0004285,120]
[340662994,1729617034991,-700.98191339,0.000429,30]
[340662995,1729617035001,-258.19767556,0.000429,30]
[340662996,1729617035011,-319.01771524,0.000429,60]
[340662997,1729617035021,-200.0,0.00043,120]
[340662998,1729617035031,-37616.5,0.00043046,7]
[340662999,1729617035042,-15582.38,0.00043046,7]
[340663000,1729617035051,-19708.84,0.00043046,7]
[340663001,1729617035060,-8631.57636221,0.00043336,9]
[340663002,1729617035071,-9125.05753668,0.00043336,9]
[340663003,1729617035082,-150.12,0.00043414,2]
[340663004,1729617035094,-8631.57636221,0.00043686,9]
[340663005,1729617035103,-8183.58509931,0.00043696,5]
[340663006,1729617035113,-2171.7838085,0.00043696,5]
[340663007,1729617035123,-195.06925221,0.0004378,20]
[340663008,1729617035132,-500.0,0.00043873,10]
[340663009,1729617035142,-264.90841347,0.00043873,10]
[340663010,1729617035496,-35.79651408,0.00043873,10]
[340663011,1729617035507,-324.44998792,0.0004388,9]
[340663012,1729617035519,-6225.7093259,0.0004388,9]
[340663013,1729617035530,-4312.59456803,0.0004388,9]
[340663014,1729617035540,-328.01300429,0.0004388,9]
[340663015,1729617035551,-888.4494383,0.0004388,9]
[340663016,1729617035563,-26912.33512253,0.0004388,9]
[340663018,1729617037882,-1084.0,0.00011,2]
[340663019,1729617037893,-519.26,0.00027397,10]
[340663020,1729617037902,-3288.15165408,0.0004388,9]
[340663021,1729617038127,-878.17870995,0.0004388,9]
[340663022,1729617038138,-45625.2876834,0.0004388,9]
[340663023,1729617038147,-8631.57636221,0.0004397,9]
[340663024,1729617038157,-18250.1150734,0.0004397,9]
[340663025,1729617038167,-500.0,0.00043973,10]
[340663026,1729617038177,-112210.492709,0.0004398,9]
[340663027,1729617038186,-136875.86305,0.0004398,9]
[340663028,1729617038196,-25800.95114251,0.0004399,10]
[340663029,1729617038206,-159.28,0.0004399,2]
[340663030,1729617038215,-417801.33471551,0.00044,2]
[340663031,1729617038225,-200.0,0.00044,120]
[340663032,1729617038235,-150.0,0.00044,120]
[340663033,1729617038245,-202979.0707728,0.00044,2]
[340663034,1729617038254,-151.0,0.00044,14]
[340663035,1729617038264,-151.0,0.00044,14]
[340663036,1729617038274,-151.0,0.00044,14]
[340663037,1729617038284,-151.0,0.00044,14]
[340663038,1729617038293,-151.0,0.00044,7]
[340663039,1729617038302,-155.138279,0.00044,14]
[340663040,1729617038312,-151.0,0.00044,14]
[340663041,1729617038321,-256.926171,0.00044,14]
[340663042,1729617038330,-151.0,0.00044,14]
[340663043,1729617038340,-279.440561,0.00044,14]
[340663044,1729617038351,-151.0,0.00044,14]
[340663045,1729617038361,-151.0,0.00044,14]
[340663046,1729617038370,-151.0,0.00044,14]
[340663047,1729617038380,-151.0,0.00044,14]
[340663048,1729617038390,-151.0,0.00044,14]
[340663049,1729617038400,-154.699593,0.00044,14]
[340663051,1729617038409,-152.169432,0.00044,14]
[340663053,1729617038418,-151.0,0.00044,14]
[340663055,1729617038428,-151.0,0.00044,14]
[340663057,1729617038438,-151.0,0.00044,14]
[340663059,1729617038447,-151.0,0.00044,14]
[340663060,1729617038457,-151.0,0.00044,14]
[340663061,1729617038466,-152.566435,0.00044,14]
[340663062,1729617038475,-151.0,0.00044,14]
[340663063,1729617038486,-155.52219,0.000448,30]
[340663064,1729617038495,-305.71,0.00044802,2]
[340663065,1729617038505,-254.41305195,0.0004489,120]
[340663066,1729617038514,-25358.07041705,0.00045,120]
[340663067,1729617038524,-41423.38854733,0.00045,2]
[340663068,1729617038533,-298.85,0.00045,120]
[340663069,1729617038543,-500.0,0.00045,120]
[340663070,1729617038553,-200.0,0.00045,120]
[340663071,1729617038562,-150.0,0.00045,60]
[340663072,1729617038575,-168.60676,0.00045,60]
[340663073,1729617038584,-505.93082385,0.00045242,10]
[340663074,1729617038594,-150.99,0.00045333,120]
[340663075,1729617038654,-500.0,0.00045644,10]
[340663076,1729617038664,-6000.0,0.000457,120]
[340663077,1729617038672,-153.4,0.00045753,2]
[340663078,1729617038682,-153.4,0.00045753,2]
[340663079,1729617038691,-88000.0,0.000458,120]
[340663080,1729617038700,-636.21,0.000459,39]
[340663081,1729617038709,-636.21,0.000459,39]
[340663082,1729617038718,-636.21,0.000459,39]
[340663083,1729617038728,-636.21,0.000459,39]
[340663084,1729617038737,-636.21,0.000459,39]
[340663085,1729617038747,-636.21,0.000459,39]
[340663086,1729617038756,-636.21,0.000459,39]
[340663087,1729617038765,-636.21,0.000459,39]
[340663088,1729617038774,-636.21,0.000459,39]
[340663089,1729617038784,-636.21,0.000459,39]
[340663090,1729617038793,-636.21,0.000459,39]
[340663091,1729617038803,-636.21,0.000459,39]
[340663092,1729617038812,-636.21,0.000459,39]
[340663093,1729617038821,-636.21,0.000459,39]
[340663094,1729617038831,-636.21,0.000459,39]
[340663095,1729617038840,-636.21,0.000459,39]
[340663096,1729617038851,-636.21,0.000459,39]
[340663097,1729617038861,-636.21,0.000459,39]
[340663098,1729617038870,-636.21,0.000459,39]
[340663099,1729617038879,-636.21,0.000459,39]
[340663100,1729617038889,-636.21,0.000459,39]
[340663101,1729617038899,-636.21,0.000459,39]
[340663102,1729617038908,-636.21,0.000459,39]
[340663103,1729617038917,-636.21,0.000459,39]
[340663104,1729617038926,-200.0,0.00046,120]
[340663105,1729617038935,-169.16770408,0.0004634,2]
[340663106,1729617038944,-200000.0,0.0004644,30]
[340663107,1729617038953,-151.0,0.0004644,14]
[340663108,1729617038963,-151.0,0.0004644,14]
[340663109,1729617038972,-151.0,0.0004644,14]
[340663110,1729617038981,-151.0,0.0004644,14]
[340663111,1729617038990,-151.0,0.0004644,7]
[340663112,1729617038999,-151.584006,0.0004644,14]
[340663113,1729617039009,-152.818569,0.0004644,14]
[340663114,1729617039018,-151.583375,0.0004644,14]
[340663115,1729617039027,-151.0,0.0004644,14]
[340663116,1729617039036,-151.0,0.0004644,14]
[340663117,1729617039046,-151.0,0.0004644,14]
[340663118,1729617039055,-151.0,0.0004644,14]
[340663119,1729617039064,-151.0,0.0004644,14]
[340663120,1729617039073,-151.0,0.0004644,14]
[340663121,1729617039083,-380.91,0.000468,120]
[340663122,1729617039092,-200.0,0.00047,120]
[340663123,1729617039103,-151.0,0.00047,14]
[340663124,1729617039112,-152.852719,0.00047,14]
[340663125,1729617039121,-151.0,0.00047,14]
[340663126,1729617039130,-151.0,0.00047,14]
[340663127,1729617039140,-151.0,0.00047,7]
[340663128,1729617039149,-151.0,0.00047,14]
[340663129,1729617039158,-151.0,0.00047,14]
[340663130,1729617039168,-151.0,0.00047,14]
[340663131,1729617039177,-151.0,0.00047,14]
[340663132,1729617039186,-151.0,0.00047,14]
[340663133,1729617039195,-151.0,0.00047,14]
[340663134,1729617039204,-204.124173,0.00047,14]
[340663135,1729617039214,-204.124173,0.00047,14]
[340663136,1729617039223,-568.39940653,0.00047014,10]
[340663137,1729617039232,-305.71,0.00047066,2]
[340663138,1729617039242,-497.69185527,0.00048,120]
[340663139,1729617039252,-200.0,0.00048,120]
[340663140,1729617039261,-1047.86,0.00048,104]
[340663141,1729617039270,-159.28,0.0004839,120]
[340663142,1729617039280,-144554.3135235,0.000484,10]
[340663143,1729617039290,-151.0,0.000484,14]
[340663144,1729617039299,-152.54005,0.000484,14]
[340663145,1729617039312,-151.0,0.000484,14]
[340663146,1729617039321,-151.0,0.000484,14]
[340663147,1729617039331,-151.0,0.000484,14]
[340663148,1729617039341,-151.0,0.000484,14]
[340663149,1729617039350,-410.294617,0.000484,14]
[340663150,1729617039360,-151.0,0.000484,14]
[340663151,1729617039370,-410.294617,0.000484,14]
[340663152,1729617039379,-151.0,0.000484,14]
[340663153,1729617039389,-151.0,0.000484,14]
[340663154,1729617039398,-151.0,0.000484,14]
[340663155,1729617039408,-151.0,0.000484,14]
[340663156,1729617039417,-151.0,0.000484,14]
[340663157,1729617039427,-151.0,0.000484,14]
[340663158,1729617039437,-209.205678,0.000484,14]
[340663159,1729617039446,-209.205678,0.000484,14]
[340663160,1729617039456,-151.0,0.000484,14]
[340663161,1729617039466,-151.0,0.000484,14]
[340663162,1729617039475,-188.948958,0.000484,14]
[340663163,1729617039485,-188.948958,0.000484,14]
[340663164,1729617039494,-152.355477,0.000484,14]
[340663165,1729617039504,-266.479967,0.000484,14]
[340663166,1729617039513,-266.479967,0.000484,14]
[340663167,1729617039523,-151.0,0.000484,14]
[340663168,1729617039532,-511.935889,0.000484,14]
[340663169,1729617039543,-511.935889,0.000484,14]
[340663170,1729617039552,-151.0,0.000484,14]
[340663171,1729617039561,-151.0,0.000484,14]
[340663172,1729617039573,-151.0,0.000484,14]
[340663173,1729617039583,-288.982211,0.000484,14]
[340663174,1729617039593,-151.0,0.000484,14]
[340663175,1729617039603,-151.0,0.000484,14]
[340663176,1729617039614,-430.461176,0.000484,14]
[340663177,1729617039624,-430.461176,0.000484,14]
[340663178,1729617039633,-151.0,0.000484,14]
[340663179,1729617039642,-151.0,0.000484,14]
[340663180,1729617039653,-151.0,0.000484,14]
[340663181,1729617039663,-151.0,0.000484,14]
[340663182,1729617039672,-151.0,0.000484,14]
[340663183,1729617039682,-151.0,0.000484,14]
[340663184,1729617039691,-151.0,0.000484,14]
[340663185,1729617039701,-245.987982,0.000484,14]
[340663186,1729617039710,-245.987982,0.000484,14]
[340663187,1729617039720,-151.0,0.000484,14]
[340663188,1729617039730,-353.725451,0.000484,14]
[340663189,1729617039740,-151.0,0.000484,7]
[340663190,1729617039750,-353.725451,0.000484,14]
[340663191,1729617039760,-811.1636,0.000484,14]
[340663192,1729617039770,-151.0,0.000484,14]
[340663193,1729617039780,-329.51923,0.000484,14]
[340663194,1729617039790,-151.0,0.000484,14]
[340663195,1729617039800,-811.1636,0.000484,14]
[340663196,1729617039810,-176.378083,0.000484,14]
[340663197,1729617039820,-329.51923,0.000484,14]
[340663198,1729617039829,-151.0,0.000484,14]
[340663199,1729617039839,-151.0,0.000484,14]
[340663200,1729617039848,-151.0,0.000484,14]
[340663201,1729617039860,-151.0,0.000484,14]
[340663202,1729617039869,-193.261219,0.000484,14]
[340663203,1729617039879,-740.711255,0.000484,14]
[340663204,1729617039888,-740.711255,0.000484,14]
[340663205,1729617039897,-6097.64006787,0.00049,120]
[340663206,1729617039907,-200.0,0.00049,120]
[340663207,1729617039918,-12000.0,0.00049,5]
[340663208,1729617039927,-151.0,0.00049233,14]
[340663209,1729617039937,-305.71,0.0004933,2]
[340663210,1729617039946,-150.99,0.00049425,120]
[340663211,1729617039956,-151.0,0.0004949,120]
[340663212,1729617039966,-151.0,0.0004949,120]
[340663213,1729617039976,-151.0,0.0004949,7]
[340663214,1729617039986,-151.0,0.0004949,120]
[340663215,1729617039996,-155.987581,0.0004949,120]
[340663216,1729617040007,-151.0,0.0004949,120]
[340663217,1729617040016,-151.0,0.0004949,120]
[340663218,1729617040026,-287.168703,0.0004949,120]
[340663219,1729617040036,-30453.31,0.0004949,120]
[340663220,1729617040045,-247.08320784,0.000496,120]
[340663221,1729617040055,-151.0,0.000498,120]
[340663222,1729617040064,-151.0,0.000498,120]
[340663223,1729617040074,-151.0,0.000498,120]
[340663224,1729617040083,-151.0,0.000498,120]
[340663225,1729617040093,-151.0,0.000498,120]
[340663227,1729617040105,-410.294617,0.000498,120]
[340663228,1729617040114,-151.0,0.000498,120]
[340663231,1729617040125,-410.294617,0.000498,120]
[340663233,1729617040135,-151.0,0.000498,120]
[340663235,1729617040144,-209.205678,0.000498,120]
[340663237,1729617040154,-209.205678,0.000498,120]
[340663239,1729617040165,-100000.0,0.0005,50]
[340663241,1729617040175,-156154.0991847,0.0005,120]
[340663242,1729617040185,-46500.65920727,0.0005,30]
[340663245,1729617040195,-150.0,0.0005,120]
[340663246,1729617040205,-300.0,0.0005,120]
[340663248,1729617040215,-500.0,0.0005,120]
[340663250,1729617040224,-276.98,0.0005,120]
[340663252,1729617040234,-6779.9953104,0.0005,120]
[340663254,1729617040245,-6190.0,0.0005,11]
[340663256,1729617040255,-151.0,0.0005,30]
[340663258,1729617040265,-151.0,0.0005,30]
[340663260,1729617040275,-156.130293,0.0005,120]
[340663262,1729617040285,-151.528104,0.0005,120]
[340663264,1729617040294,-151.0,0.0005,120]
[340663266,1729617040304,-151.0,0.0005,120]
[340663268,1729617040313,-151.0,0.0005,120]
[340663270,1729617040323,-151.0,0.0005,120]
[340663272,1729617040333,-151.0,0.0005,120]
[340663274,1729617040342,-151.0,0.0005,120]
[340663276,1729617040353,-151.0,0.0005,120]
[340663278,1729617040362,-151.0,0.0005,120]
[340663280,1729617040372,-151.0,0.0005,120]
[340663282,1729617040382,-196.814463,0.0005,120]
[340663284,1729617040391,-151.0,0.0005,120]
[340663286,1729617040401,-151.0,0.0005,120]
[340663288,1729617040411,-151.0,0.0005,120]
[340663290,1729617040420,-616.703727,0.0005,120]
[340663292,1729617040430,-510.961506,0.0005,120]
[340663294,1729617040440,-616.703727,0.0005,120]
[340663296,1729617040450,-153.088048,0.0005,120]
[340663298,1729617040460,-510.961506,0.0005,120]
[340663299,1729617040470,-151.0,0.0005,120]
[340663301,1729617040480,-151.0,0.0005,120]
[340663303,1729617040489,-151.0,0.0005,120]
[340663304,1729617040499,-337.435872,0.0005,120]
[340663305,1729617040510,-227.166276,0.0005,120]
[340663306,1729617040520,-337.435872,0.0005,120]
[340663307,1729617040529,-251.172437,0.0005,120]
[340663308,1729617040540,-251.172437,0.0005,120]
[340663309,1729617040550,-840.434588,0.0005,120]
[340663310,1729617040559,-840.434588,0.0005,120]
[340663311,1729617040572,-151.0,0.0005,120]
[340663312,1729617040582,-150.0,0.00050782,120]
[340663313,1729617040592,-512.890139,0.00050782,120]
[340663314,1729617040603,-305.71,0.00051594,2]
[340663315,1729617040614,-151.0,0.000517,120]
[340663316,1729617040624,-252.208105,0.000517,120]
[340663317,1729617040634,-151.0,0.000517,120]
[340663318,1729617040645,-151.0,0.000517,120]
[340663319,1729617040656,-266.479967,0.000517,120]
[340663320,1729617040666,-266.479967,0.000517,120]
[340663321,1729617040677,-151.0,0.000517,120]
[340663322,1729617040686,-151.0,0.00051864,120]
[340663323,1729617040696,-151.0,0.00051864,120]
[340663324,1729617040706,-151.0,0.00051864,120]
[340663325,1729617040716,-188.948958,0.00051864,120]
[340663326,1729617040726,-188.948958,0.00051864,120]
[340663327,1729617040736,-151.0,0.00051864,120]
[340663328,1729617040745,-511.935889,0.00051864,120]
[340663329,1729617040755,-511.935889,0.00051864,120]
[340663330,1729617040765,-152.390842,0.00051864,120]
[340663331,1729617040775,-151.0,0.00051864,120]
[340663332,1729617040785,-241.352571,0.00051883,30]
[340663333,1729617040794,-151.0,0.000519,30]
[340663334,1729617040808,-151.0,0.000519,30]
[340663335,1729617040817,-2535.12,0.00052,45]
[340663336,1729617040827,-151.0,0.00052055,120]
[340663337,1729617040837,-151.0,0.00052055,120]
[340663338,1729617040847,-151.0,0.00052055,120]
[340663339,1729617040860,-151.0,0.00052055,120]
[340663340,1729617040870,-151.0,0.00052055,120]
[340663341,1729617040880,-151.0,0.00052055,120]
[340663342,1729617040889,-151.0,0.00052055,120]
[340663343,1729617040899,-151.0,0.00052055,120]
[340663344,1729617040909,-636.21,0.000521,51]
[340663345,1729617040919,-636.21,0.000521,51]
[340663346,1729617040930,-636.21,0.000521,51]
[340663347,1729617040940,-636.21,0.000521,51]
[340663348,1729617040949,-636.21,0.000521,51]
[340663349,1729617040960,-636.21,0.000521,51]
[340663350,1729617040971,-636.21,0.000521,51]
[340663351,1729617040980,-636.21,0.000521,51]
[340663352,1729617040991,-636.21,0.000521,51]
[340663353,1729617041000,-636.21,0.000521,51]
[340663354,1729617041010,-636.21,0.000521,51]
[340663355,1729617041021,-636.21,0.000521,51]
[340663356,1729617041032,-636.21,0.000521,51]
[340663357,1729617041042,-636.21,0.000521,51]
[340663358,1729617041052,-636.21,0.000521,51]
[340663359,1729617041062,-636.21,0.000521,51]
[340663360,1729617041072,-636.21,0.000521,51]
[340663361,1729617041083,-636.21,0.000521,51]
[340663362,1729617041093,-636.21,0.000521,51]
[340663363,1729617041105,-636.21,0.000521,51]
[340663364,1729617041115,-636.21,0.000521,51]
[340663365,1729617041125,-636.21,0.000521,51]
[340663366,1729617041135,-636.21,0.000521,51]
[340663367,1729617041145,-636.21,0.000521,51]
[340663368,1729617041156,-150.12,0.00052771,2]
[340663369,1729617041166,-150.99,0.00053516,120]
[340663370,1729617041176,-305.71,0.00053858,2]
[340663371,1729617041187,-2656.22064871,0.0005399,30]
[340663372,1729617041197,-1054523.7464243,0.00054594,120]
[340663373,1729617041207,-151.0,0.00054594,120]
[340663374,1729617041217,-154.329961,0.00054594,120]
[340663375,1729617041227,-151.0,0.00054594,120]
[340663376,1729617041239,-151.0,0.00054594,120]
[340663377,1729617041250,-151.0,0.00054594,120]
[340663378,1729617041261,-151.0,0.00054594,120]
[340663379,1729617041271,-151.0,0.00054594,120]
[340663380,1729617041281,-151.0,0.00054594,120]
[340663381,1729617041291,-151.0,0.00054594,120]
[340663382,1729617041301,-151.0,0.00054594,120]
[340663383,1729617041311,-151.0,0.00054594,120]
[340663384,1729617041322,-151.0,0.00054594,120]
[340663385,1729617041332,-616.703727,0.00054594,120]
[340663386,1729617041342,-510.961506,0.00054594,120]
[340663387,1729617041354,-616.703727,0.00054594,120]
[340663388,1729617041364,-510.961506,0.00054594,120]
[340663389,1729617041374,-151.0,0.00054594,120]
[340663390,1729617041385,-151.0,0.00054594,120]
[340663391,1729617041395,-151.0,0.00054594,120]
[340663392,1729617041405,-337.435872,0.00054594,120]
[340663393,1729617041414,-337.435872,0.00054594,120]
[340663394,1729617041424,-151.0,0.00054594,120]
[340663395,1729617041434,-151.0,0.00054594,120]
[340663396,1729617041444,-251.172437,0.00054594,120]
[340663397,1729617041454,-430.461176,0.00054594,120]
[340663398,1729617041464,-251.172437,0.00054594,120]
[340663399,1729617041473,-430.461176,0.00054594,120]
[340663400,1729617041483,-151.0,0.00054594,120]
[340663401,1729617041493,-151.0,0.00054594,120]
[340663402,1729617041503,-151.774574,0.00054594,120]
[340663403,1729617041512,-151.0,0.00054594,120]
[340663404,1729617041522,-840.434588,0.00054594,120]
[340663405,1729617041531,-840.434588,0.00054594,120]
[340663406,1729617041541,-151.0,0.00054594,120]
[340663407,1729617041551,-151.0,0.00054594,120]
[340663408,1729617041561,-151.0,0.00054594,120]
[340663409,1729617041574,-245.987982,0.00054594,120]
[340663410,1729617041584,-245.987982,0.00054594,120]
[340663411,1729617041594,-151.0,0.00054594,120]
[340663412,1729617041606,-353.725451,0.00054594,120]
[340663413,1729617041617,-151.0,0.00054594,7]
[340663414,1729617041627,-353.725451,0.00054594,120]
[340663415,1729617041638,-811.1636,0.00054594,120]
[340663416,1729617041648,-151.0,0.00054594,120]
[340663417,1729617041658,-151.0,0.00054594,120]
[340663418,1729617041668,-329.51923,0.00054594,120]
[340663419,1729617041679,-811.1636,0.00054594,120]
[340663420,1729617041688,-329.51923,0.00054594,120]
[340663421,1729617041698,-151.0,0.00054594,120]
[340663422,1729617041708,-151.0,0.00054594,120]
[340663423,1729617041718,-151.0,0.00054594,120]
[340663424,1729617041728,-151.0,0.00054594,120]
[340663425,1729617041738,-152.22729,0.00054594,120]
[340663426,1729617041747,-204.124173,0.00054594,120]
[340663427,1729617041758,-204.124173,0.00054594,120]
[340663428,1729617041768,-151.0,0.00054594,120]
[340663429,1729617041908,-740.711255,0.00054594,120]
[340663430,1729617041918,-740.711255,0.00054594,120]
[340663431,1729617041928,-368.4945811,0.00054756,2]
[340663432,1729617041940,-6798.4918007,0.00054756,2]
[340663433,1729617041951,-2237.5260071,0.00054756,2]
[340663434,1729617041960,-150.0,0.00054773,10]
[340663435,1729617041970,-294.801758,0.00054794,120]
[340663436,1729617041980,-151.0,0.00054794,120]
[340663437,1729617041990,-151.0,0.00054794,7]
[340663438,1729617041999,-151.0,0.00054794,120]
[340663439,1729617042009,-500.0,0.00054794,120]
[340663440,1729617042019,-507.15889511,0.00054794,120]
[340663441,1729617042028,-504.82912293,0.00054794,120]
[340663442,1729617042038,-500.0,0.00054794,120]
[340663443,1729617042047,-504.64079777,0.00054794,120]
[340663444,1729617042056,-500.0,0.00054794,120]
[340663445,1729617042066,-500.0,0.00054794,120]
[340663446,1729617042075,-506.41034994,0.00054794,30]
[340663447,1729617042086,-504.49096454,0.00054794,120]
[340663448,1729617042096,-500.0,0.00054794,120]
[340663449,1729617042107,-500.0,0.00054794,120]
[340663450,1729617042117,-500.0,0.00054794,120]
[340663451,1729617042127,-500.0,0.00054794,120]
[340663452,1729617042136,-500.0,0.00054794,120]
[340663453,1729617042146,-500.0,0.00054794,120]
[340663454,1729617042156,-500.0,0.00054794,120]
[340663455,1729617042165,-500.0,0.00054794,120]
[340663456,1729617042175,-500.0,0.00054794,120]
[340663457,1729617042184,-500.0,0.00054794,120]
[340663458,1729617042193,-505.71950665,0.00054794,120]
[340663459,1729617042203,-505.4817784,0.00054794,120]
[340663460,1729617042212,-500.0,0.00054794,120]
[340663461,1729617042221,-500.0,0.00054794,120]
[340663462,1729617042230,-500.0,0.00054794,60]
[340663463,1729617042241,-500.0,0.00054794,120]
[340663464,1729617042250,-505.82222947,0.00054794,120]